bitfinex/quotes_BTCUSD_20260117
["timestamp","ask_amount","ask_price","bid_price","bid_amount"]
[1768652104867,0.01049361,95296.0,95291.0,0.01049417]
[1768652105045,0.01049361,95296.0,95292.0,0.01049406]
[1768652105995,0.05608583,95297.0,95293.0,0.01049395]
[1768652106195,0.04559233,95297.0,95294.0,0.01049384]
[1768652106744,0.04559233,95297.0,95293.0,0.01044865]
[1768652106951,0.05608583,95297.0,95293.0,0.01044865]
[1768652108031,0.04559233,95297.0,95294.0,0.01049384]
[1768652108236,0.04559233,95297.0,95293.0,0.01044865]
[1768652108237,0.01049361,95296.0,95291.0,0.01049417]
[1768652108904,0.01049372,95295.0,95291.0,0.01049417]
[1768652109464,0.01049372,95295.0,95290.0,0.01049428]
[1768652109888,0.04559233,95294.0,95290.0,0.01049428]
[1768652110327,0.01049372,95295.0,95291.0,0.01049417]
[1768652110466,0.01049384,95294.0,95290.0,0.01049428]
[1768652110675,0.01049361,95296.0,95292.0,0.01049406]
[1768652112098,0.10855285,95298.0,95293.0,0.01049395]
[1768652112668,0.04559233,95297.0,95293.0,0.01049395]
[1768652112874,0.05608583,95297.0,95293.0,0.01049395]
[1768652114958,0.01049339,95298.0,95294.0,0.01049384]
[1768652115387,0.01049339,95298.0,95293.0,0.01049395]
[1768652115595,0.01049339,95298.0,95294.0,0.01049384]
[1768652116817,0.05608561,95299.0,95295.0,0.01049372]
[1768652118075,0.04559233,95299.0,95296.0,0.01049361]
[1768652118287,0.02265032,95307.0,95296.0,0.01049361]
[1768652118498,0.0003592,95312.0,95306.0,0.05246248]
[1768652118722,0.01049196,95311.0,95304.0,0.01049273]
[1768652118913,0.01049196,95311.0,95306.0,0.01049251]
[1768652119116,0.01049218,95309.0,95305.0,0.01049262]
[1768652119623,0.01049218,95309.0,95304.0,0.01049273]
[1768652119624,0.01096508,95309.0,95304.0,0.01049273]
[1768652119828,0.05655741,95309.0,95305.0,0.01049262]
[1768652120235,0.0104924,95307.0,95302.0,0.01049295]
[1768652120643,0.0104924,95307.0,95303.0,0.01049284]
[1768652121269,0.04559233,95308.0,95304.0,0.01049273]
[1768652122352,0.05608462,95308.0,95304.0,0.01049273]
[1768652123871,0.05608462,95308.0,95301.0,0.12716]
[1768652124072,0.0104924,95307.0,95303.0,0.01049284]
[1768652124281,0.01096508,95309.0,95303.0,0.01049284]
[1768652124655,0.01049229,95308.0,95302.0,0.01049295]
[1768652124866,0.0104924,95307.0,95303.0,0.01049284]
[1768652125902,0.01049251,95306.0,95302.0,0.01049295]
[1768652126316,0.0104924,95307.0,95303.0,0.01049284]
[1768652126730,0.01096508,95309.0,95304.0,0.01049273]
[1768652127148,0.05752375,95309.0,95301.0,0.12716]
[1768652127359,0.0104924,95307.0,95302.0,0.01049295]
[1768652127559,0.01049229,95308.0,95303.0,0.01049284]
[1768652128669,0.01049229,95308.0,95302.0,0.01049295]
[1768652128670,0.0104924,95307.0,95302.0,0.01049295]
[1768652128898,0.01049229,95308.0,95303.0,0.05246414]
[1768652129756,0.01096508,95309.0,95304.0,0.01049273]
[1768652130414,0.01096508,95309.0,95303.0,0.05246414]
[1768652130415,0.01049229,95308.0,95303.0,0.01049284]
[1768652130638,0.0104924,95307.0,95303.0,0.01049284]
[1768652130860,0.01049229,95308.0,95304.0,0.01049273]
[1768652131343,0.05705107,95307.0,95303.0,0.01049284]
[1768652131540,0.0104924,95307.0,95303.0,0.01049284]
[1768652132003,0.01049262,95305.0,95301.0,0.12716]
[1768652132243,0.01040201,95305.0,95301.0,0.12716]
[1768652132688,0.01049273,95304.0,95301.0,0.12716]
[1768652134944,0.01040201,95305.0,95301.0,0.12716]
[1768652137052,0.01049251,95306.0,95301.0,0.13765306]
[1768652138421,0.01049251,95306.0,95302.0,0.01049295]
[1768652140216,0.0104924,95307.0,95302.0,0.01049295]
[1768652140424,0.0104924,95307.0,95303.0,0.01049284]
[1768652141470,0.01049229,95308.0,95303.0,0.01049284]
[1768652143485,0.0104924,95307.0,95303.0,0.01049284]
[1768652145552,0.01049229,95308.0,95304.0,0.01049273]
[1768652147024,0.01049229,95308.0,95303.0,0.01049284]
[1768652147025,0.0003592,95312.0,95306.0,0.01049251]
[1768652147237,0.00050092,95312.0,95309.0,0.01049218]
[1768652147451,0.00050092,95312.0,95308.0,0.12716]
[1768652147452,0.01099277,95312.0,95308.0,0.12716]
[1768652147876,0.01099277,95312.0,95308.0,0.13765229]
[1768652148084,0.00050092,95312.0,95308.0,0.13765229]
[1768652148294,0.01099277,95312.0,95308.0,0.12716]
[1768652148532,0.01049196,95311.0,95308.0,0.12716]
[1768652151684,0.06295189,95311.0,95308.0,0.12716]
[1768652154939,0.05246081,95310.0,95308.0,0.12716]
[1768652155150,0.01049196,95311.0,95308.0,0.12716]
[1768652155354,0.05246094,95309.0,95308.0,0.12716]
[1768652160292,0.01049251,95306.0,95303.0,0.12712]
[1768652163477,0.0104924,95307.0,95303.0,0.12712]
[1768652163660,0.01049251,95306.0,95303.0,0.12712]
[1768652165798,0.06295526,95306.0,95303.0,0.12712]
[1768652165950,0.01049251,95306.0,95303.0,0.12712]
[1768652166742,0.0104924,95307.0,95303.0,0.13761284]
[1768652168018,0.05246107,95309.0,95303.0,0.13761284]
[1768652168019,0.01049229,95308.0,95303.0,0.13761284]
[1768652168198,0.01049229,95308.0,95304.0,0.01049273]
[1768652168976,0.01049251,95306.0,95303.0,0.12712]
[1768652169638,0.01049229,95308.0,95303.0,0.12712]
[1768652169639,0.0104924,95307.0,95303.0,0.13761284]
[1768652169841,0.01049229,95308.0,95303.0,0.13761284]
[1768652170088,0.06295455,95307.0,95303.0,0.12712]
[1768652170300,0.0104924,95307.0,95303.0,0.12712]
[1768652170813,0.0629551,95306.0,95303.0,0.12712]
[1768652170966,0.0104924,95307.0,95303.0,0.12712]
[1768652171589,0.0104924,95307.0,95303.0,0.13761284]
[1768652173023,0.01049251,95306.0,95303.0,0.12712]
[1768652173427,0.0104924,95307.0,95303.0,0.13761284]
[1768652175736,0.01049251,95306.0,95303.0,0.12712]
[1768652176161,0.0104924,95307.0,95303.0,0.13761284]
[1768652177202,0.01049229,95308.0,95303.0,0.13761284]
[1768652178271,0.01049229,95308.0,95304.0,0.01049273]
[1768652178948,0.01049229,95308.0,95303.0,0.13761284]
[1768652180044,0.0104924,95307.0,95303.0,0.13761284]
[1768652180679,0.01049218,95309.0,95304.0,0.01049273]
[1768652180887,0.0104924,95307.0,95303.0,0.13761284]
[1768652181089,0.01049251,95306.0,95303.0,0.12712]
[1768652182534,0.06295261,95310.0,95303.0,0.12712]
[1768652182535,0.0001592,95340.0,95306.0,0.01]
[1768652182744,0.00023353,95340.0,95332.0,0.01048965]
[1768652182963,0.04966172,95346.0,95337.0,0.05244502]
[1768652183168,0.04966172,95346.0,95341.0,0.01029094]
[1768652183381,0.04966172,95346.0,95343.0,0.0629306]
[1768652183603,0.04966172,95346.0,95343.0,0.01048844]
[1768652183816,0.04966172,95346.0,95342.0,0.01048855]
[1768652184019,0.04966172,95346.0,95341.0,0.01056299]
[1768652184240,0.04966172,95346.0,95281.0,0.11898908]
[1768652184241,0.0002944,95367.0,95319.0,0.000162]
[1768652184513,0.0002944,95367.0,95307.0,0.00547]
[1768652184514,0.04946172,95321.0,95318.0,0.01049119]
[1768652184728,0.04946172,95321.0,95312.0,0.01049185]
[1768652184729,0.01049097,95320.0,95312.0,0.01049185]
[1768652184931,0.01049108,95319.0,95313.0,0.01049174]
[1768652185319,0.01049108,95319.0,95312.0,0.06295111]
[1768652185522,0.01049108,95319.0,95314.0,0.01049163]
[1768652185698,0.01049097,95320.0,95315.0,0.01049152]
[1768652186048,0.01049119,95318.0,95313.0,0.01049174]
[1768652186196,0.01049119,95318.0,95312.0,0.01049185]
[1768652186197,0.0104913,95317.0,95312.0,0.01049185]
[1768652186404,0.01049141,95316.0,95310.0,0.01049207]
[1768652186616,0.01049163,95314.0,95310.0,0.01049207]
[1768652186820,0.01049152,95315.0,95310.0,0.01049207]
[1768652187235,0.01049152,95315.0,95311.0,0.01049196]
[1768652187838,0.0104913,95317.0,95312.0,0.01049185]
[1768652188042,0.01049141,95316.0,95312.0,0.01049185]
[1768652188248,0.01049152,95315.0,95311.0,0.01049196]
[1768652188452,0.01049152,95315.0,95310.0,0.0489576]
[1768652188649,0.01049141,95316.0,95311.0,0.01049196]
[1768652188858,0.01049152,95315.0,95311.0,0.01049196]
[1768652189076,0.01049141,95316.0,95312.0,0.01049185]
[1768652189534,0.0104913,95317.0,95312.0,0.01049185]
[1768652190361,0.01049152,95315.0,95311.0,0.0489576]
[1768652190567,0.01049152,95315.0,95311.0,0.05944956]
[1768652190765,0.01049163,95314.0,95308.0,0.01049229]
[1768652190973,0.01049174,95313.0,95309.0,0.01049218]
[1768652191181,0.01049174,95313.0,95306.0,0.0002282]
[1768652191397,0.01049207,95310.0,95303.0,0.17958374]
[1768652191608,0.01049218,95309.0,95305.0,0.01049262]
[1768652191812,0.01049207,95310.0,95305.0,0.00014172]
[1768652192017,0.01049196,95311.0,95305.0,0.01063434]
[1768652192264,0.01049218,95309.0,95305.0,0.00014172]
[1768652192473,0.01049218,95309.0,95305.0,0.01063434]
[1768652192698,0.01049196,95311.0,95307.0,0.0104924]
[1768652192902,0.01049218,95309.0,95305.0,0.00014172]
[1768652193110,0.01049229,95308.0,95305.0,0.00014172]
[1768652193345,0.01049218,95309.0,95305.0,0.01063434]
[1768652193549,0.01049196,95311.0,95306.0,0.01049251]
[1768652193758,0.01049196,95311.0,95305.0,0.01063434]
[1768652193996,0.01049207,95310.0,95305.0,0.01063434]
[1768652194208,0.01049163,95314.0,95308.0,0.01049229]
[1768652194424,0.06294983,95314.0,95308.0,0.01049229]
[1768652194644,0.01049185,95312.0,95308.0,0.01049229]
[1768652195494,0.01049174,95313.0,95308.0,0.01049229]
[1768652195712,0.01049207,95310.0,95305.0,0.00014172]
[1768652195931,0.01049207,95310.0,95306.0,0.01049251]
[1768652196147,0.01049174,95313.0,95306.0,0.01049251]
[1768652196569,0.01049218,95309.0,95305.0,0.01063434]
[1768652196778,0.01049207,95310.0,95306.0,0.01049251]
[1768652196992,0.01049185,95312.0,95306.0,0.01049251]
[1768652197424,0.01049207,95310.0,95306.0,0.01049251]
[1768652197634,0.01049218,95309.0,95305.0,0.01063434]
[1768652198490,0.01049207,95310.0,95305.0,0.01063434]
[1768652198697,0.01049207,95310.0,95306.0,0.01049251]
[1768652199011,0.01049196,95311.0,95306.0,0.01049251]
[1768652199202,0.01049196,95311.0,95307.0,0.0104924]
[1768652199404,0.0629518,95311.0,95310.0,0.00055293]
[1768652199834,0.01049196,95311.0,95310.0,0.00055293]
[1768652201186,0.01049372,95295.0,95289.0,0.01049439]
[1768652201413,0.01049372,95295.0,95274.0,0.04192]
[1768652201414,0.06296287,95295.0,95292.0,0.0007011]
[1768652201642,0.05246975,95293.0,95292.0,0.0007011]
[1768652201959,0.01049428,95290.0,95285.0,0.01049483]
[1768652202165,0.0109663,95290.0,95286.0,0.01049472]
[1768652202373,0.00047202,95290.0,95286.0,0.01049472]
[1768652202525,0.01049461,95287.0,95280.0,0.17959679]
[1768652202733,0.0104945,95288.0,95283.0,0.01049505]
[1768652202938,0.01049439,95289.0,95284.0,0.01049494]
[1768652203551,0.05295444,95290.0,95285.0,0.01049483]
[1768652203753,0.0109663,95290.0,95285.0,0.01049483]
[1768652204064,0.01049439,95289.0,95285.0,0.01049483]
[1768652204627,0.0104945,95288.0,95284.0,0.01049494]
[1768652204893,0.01049439,95289.0,95284.0,0.01049494]
[1768652205127,0.0109663,95290.0,95285.0,0.01049483]
[1768652205546,0.01049439,95289.0,95285.0,0.01049483]
[1768652206437,0.0104945,95288.0,95283.0,0.01049505]
[1768652206644,0.01049461,95287.0,95283.0,0.01049505]
[1768652207046,0.0104945,95288.0,95283.0,0.01049505]
[1768652207248,0.06296706,95288.0,95282.0,0.01049516]
[1768652207484,0.01049494,95284.0,95278.0,0.0002282]
[1768652207692,0.01049549,95279.0,95272.0,0.06297728]
[1768652207897,0.01049549,95279.0,95271.0,0.01049637]
[1768652207898,0.01049527,95281.0,95273.0,0.05248058]
[1768652208069,0.01049516,95282.0,95277.0,0.01049571]
[1768652208301,0.01049483,95285.0,95278.0,0.0104956]
[1768652208302,0.01049505,95283.0,95278.0,0.0104956]
[1768652208507,0.01049516,95282.0,95277.0,0.01049571]
[1768652208710,0.01049527,95281.0,95275.0,0.01049593]
[1768652208918,0.01049538,95280.0,95275.0,0.01049593]
[1768652209359,0.01049538,95280.0,95272.0,0.01049626]
[1768652209360,0.0104956,95278.0,95272.0,0.01049626]
[1768652209570,0.01049582,95276.0,95271.0,0.01049637]
[1768652209793,0.01049582,95276.0,95272.0,0.01049626]
[1768652210046,0.01049571,95277.0,95273.0,0.01049615]
[1768652210700,0.01049549,95279.0,95275.0,0.01049593]
[1768652210910,0.01049549,95279.0,95274.0,0.01049604]
[1768652211343,0.0104956,95278.0,95274.0,0.01049604]
[1768652211553,0.0104956,95278.0,95271.0,0.01049637]
[1768652211989,0.0104956,95278.0,95269.0,0.01049659]
[1768652212201,0.05247856,95277.0,95269.0,0.01049659]
[1768652212436,0.01049615,95273.0,95268.0,0.0104967]
[1768652212646,0.01049626,95272.0,95267.0,0.01049681]
[1768652213275,0.01049626,95272.0,95264.0,0.01049714]
[1768652213492,0.06297757,95272.0,95265.0,0.05248517]
[1768652213704,0.01049714,95264.0,95261.0,0.00022077]
[1768652214554,0.01049703,95265.0,95261.0,0.00022077]
[1768652215660,0.01049714,95264.0,95261.0,0.00022077]
[1768652217351,0.01049714,95264.0,95261.0,0.00017548]
[1768652217533,0.01049703,95265.0,95261.0,0.00017548]
[1768652218166,0.01049703,95265.0,95261.0,0.01067295]
[1768652218378,0.0104967,95268.0,95262.0,0.01049736]
[1768652218586,0.01049692,95266.0,95262.0,0.01049736]
[1768652218830,0.01049703,95265.0,95261.0,0.01067295]
[1768652219039,0.01049692,95266.0,95261.0,0.01067295]
[1768652219677,0.01049692,95266.0,95262.0,0.01049736]
[1768652219892,0.01049703,95265.0,95261.0,0.01067295]
[1768652220325,0.01049692,95266.0,95262.0,0.01049736]
[1768652220762,0.01049692,95266.0,95261.0,0.01067295]
[1768652220908,0.01049703,95265.0,95261.0,0.01062766]
[1768652221535,0.01049714,95264.0,95261.0,0.00013019]
[1768652221735,0.01049692,95266.0,95261.0,0.01062766]
[1768652222477,0.01049692,95266.0,95262.0,0.01049736]
[1768652222727,0.01049703,95265.0,95261.0,0.01062766]
[1768652222937,0.01049681,95267.0,95261.0,0.01062766]
[1768652223150,0.01049681,95267.0,95261.0,0.00013019]
[1768652223359,0.01049692,95266.0,95261.0,0.01062766]
[1768652223576,0.01049692,95266.0,95262.0,0.01049736]
[1768652223795,0.12716,95266.0,95263.0,0.01049725]
[1768652224007,0.12716,95266.0,95262.0,0.01049736]
[1768652224672,0.12716,95266.0,95263.0,0.01049725]
[1768652224887,0.12716,95266.0,95263.0,0.06298333]
[1768652225093,0.12716,95266.0,95263.0,0.01049725]
[1768652225316,0.12716,95266.0,95263.0,0.06298344]
[1768652226357,0.12716,95266.0,95263.0,0.01049725]
[1768652226571,0.12716,95266.0,95261.0,0.01062766]
[1768652226572,0.01049703,95265.0,95261.0,0.01062766]
[1768652227282,0.12716,95266.0,95262.0,0.01049736]
[1768652227485,0.12716,95266.0,95261.0,0.00013019]
[1768652227686,0.12716,95266.0,95263.0,0.01049725]
[1768652228286,0.12716,95266.0,95263.0,0.06293817]
[1768652228473,0.12716,95266.0,95261.0,0.06332978]
[1768652228880,0.12716,95266.0,95263.0,0.01049725]
[1768652229080,0.12716,95266.0,95263.0,0.06298352]
[1768652229282,0.13765692,95266.0,95262.0,0.01049736]
[1768652230282,0.12716,95266.0,95262.0,0.01049736]
[1768652230705,0.01049703,95265.0,95261.0,0.00013019]
[1768652230899,0.01049725,95263.0,95254.0,0.0002228]
[1768652231147,0.01049769,95259.0,95254.0,0.06342316]
[1768652231524,0.0104978,95258.0,95254.0,0.06342316]
[1768652231754,0.0104978,95258.0,95254.0,0.05292492]
[1768652231952,0.01049791,95257.0,95254.0,0.0002228]
[1768652232174,0.0104978,95258.0,95254.0,0.0002228]
[1768652232372,0.0104978,95258.0,95254.0,0.00027006]
[1768652233125,0.01049769,95259.0,95255.0,0.05270212]
[1768652233296,0.01049769,95259.0,95254.0,0.0107683]
[1768652233545,0.01049758,95260.0,95254.0,0.0107683]
[1768652233716,0.01049769,95259.0,95254.0,0.0107683]
[1768652233928,0.01049791,95257.0,95254.0,0.00027006]
[1768652234334,0.06298764,95257.0,95254.0,0.00027006]
[1768652234560,0.01049791,95257.0,95254.0,0.00027006]
[1768652235116,0.0104978,95258.0,95254.0,0.0107683]
[1768652235317,0.0104978,95258.0,95254.0,0.00027006]
[1768652237081,0.0104978,95258.0,95254.0,0.0107683]
[1768652237955,0.01049769,95259.0,95254.0,0.0107683]
[1768652238193,0.0104978,95258.0,95254.0,0.0107683]
[1768652239090,0.01049769,95259.0,95254.0,0.0107683]
[1768652239438,0.01049758,95260.0,95256.0,0.01049802]
[1768652240057,0.01049758,95260.0,95255.0,0.01049813]
[1768652240455,0.01049747,95261.0,95257.0,0.01049791]
[1768652244667,0.01049747,95261.0,95256.0,0.01049802]
[1768652245068,0.01049747,95261.0,95254.0,0.0107683]
[1768652245399,0.01049747,95261.0,95255.0,0.05249059]
[1768652245896,0.01049747,95261.0,95254.0,0.0107683]
[1768652246035,0.01049747,95261.0,95256.0,0.01049802]
[1768652246239,0.13765736,95262.0,95258.0,0.0104978]
[1768652246453,0.13765736,95262.0,95257.0,0.01049791]
[1768652247154,0.01049747,95261.0,95257.0,0.01049791]
[1768652247361,0.01049747,95261.0,95256.0,0.01049802]
[1768652248399,0.01049769,95259.0,95254.0,0.0107683]
[1768652248579,0.01049769,95259.0,95255.0,0.01049813]
[1768652249403,0.01049769,95259.0,95255.0,0.00962131]
[1768652249610,0.01049769,95259.0,95255.0,0.00942371]
[1768652250300,0.0104978,95258.0,95254.0,0.00027006]
[1768652250512,0.0104978,95258.0,95254.0,0.0107683]
[1768652250694,0.01049758,95260.0,95255.0,0.01049813]
[1768652251299,0.0104978,95258.0,95254.0,0.0107683]
[1768652252479,0.01049769,95259.0,95254.0,0.0107683]
[1768652252971,0.0104978,95258.0,95254.0,0.00027006]
[1768652254311,0.01049791,95257.0,95254.0,0.00027006]
[1768652259768,0.0104978,95258.0,95254.0,0.00027006]
[1768652260515,0.01049791,95257.0,95254.0,0.00027006]
[1768652260724,0.00632195,95257.0,95254.0,0.00027006]
[1768652262862,0.05881154,95257.0,95254.0,0.00027006]
[1768652263073,0.05249054,95256.0,95254.0,0.00027006]
[1768652264428,0.05249068,95255.0,95254.0,0.00027006]
[1768652265017,0.01049824,95254.0,95247.0,0.01049901]
[1768652265172,0.01049857,95251.0,95246.0,0.01049912]
[1768652266075,0.01049857,95251.0,95246.0,0.06299466]
[1768652266271,0.01049868,95250.0,95228.0,0.05366379]
[1768652266488,0.25385776,95250.0,95240.0,0.01049979]
[1768652266704,0.01049923,95245.0,95240.0,0.01049979]
[1768652267513,0.01049912,95246.0,95241.0,0.01049967]
[1768652268341,0.01049923,95245.0,95241.0,0.01049967]
[1768652268714,0.01049934,95244.0,95240.0,0.01049979]
[1768652269851,0.01049923,95245.0,95240.0,0.01049979]
[1768652270129,0.01049923,95245.0,95241.0,0.01049967]
[1768652273734,0.01049923,95245.0,95240.0,0.01089639]
[1768652273943,0.01049923,95245.0,95241.0,0.01049967]
[1768652274168,0.01049923,95245.0,95240.0,0.01089639]
[1768652275721,0.01049923,95245.0,95241.0,0.01049967]
[1768652275902,0.01049923,95245.0,95240.0,0.01089639]
[1768652276098,0.01049923,95245.0,95241.0,0.01049967]
[1768652276503,0.01049912,95246.0,95242.0,0.01049956]
[1768652276713,0.13769846,95252.0,95243.0,0.01049945]
[1768652276892,0.1272,95252.0,95249.0,0.01049879]
[1768652278105,0.1272,95252.0,95249.0,0.01069979]
[1768652281201,0.05248616,95264.0,95258.0,0.0104978]
[1768652281403,0.0819511,95284.0,95256.0,0.06319119]
[1768652281404,0.01049758,95260.0,95256.0,0.06319119]
[1768652281725,0.01049758,95260.0,95256.0,0.01049802]
[1768652282159,0.01049769,95259.0,95255.0,0.01049813]
[1768652282368,0.01049736,95262.0,95257.0,0.01049791]
[1768652282577,0.01049758,95260.0,95255.0,0.01049813]
[1768652283001,0.00020804,95257.0,95255.0,0.01049813]
[1768652286060,0.00020804,95257.0,95255.0,0.0631913]
[1768652286261,0.01049758,95260.0,95257.0,0.03169317]
[1768652286465,0.01049758,95260.0,95257.0,0.01755409]
[1768652286667,0.01049769,95259.0,95255.0,0.01049813]
[1768652287062,0.19018367,95263.0,95257.0,0.01049791]
[1768652287063,0.01049725,95263.0,95257.0,0.01049791]
[1768652287273,0.01049769,95259.0,95251.0,0.05289417]
[1768652287484,0.01049824,95254.0,95251.0,0.000201]
[1768652288748,0.06298952,95254.0,95251.0,0.000201]
[1768652288951,0.01049824,95254.0,95251.0,0.000201]
[1768652289255,0.01049813,95255.0,95251.0,0.01069957]
[1768652289389,0.01049824,95254.0,95251.0,0.000201]
[1768652289596,0.01049813,95255.0,95251.0,0.000201]
[1768652289800,0.01049813,95255.0,95251.0,0.01069957]
[1768652290030,0.01049802,95256.0,95251.0,0.01069957]
[1768652290230,0.01049791,95257.0,95251.0,0.01069957]
[1768652290231,0.01049791,95257.0,95252.0,0.01049846]
[1768652290655,0.01049791,95257.0,95253.0,0.01049835]
[1768652291284,0.0104978,95258.0,95254.0,0.01049824]
[1768652291457,0.01049791,95257.0,95253.0,0.01049835]
[1768652291859,0.01049791,95257.0,95252.0,0.01049846]
[1768652292080,0.05249062,95256.0,95251.0,0.000201]
[1768652292319,0.01049824,95254.0,95251.0,0.000201]
[1768652292519,0.01049813,95255.0,95251.0,0.000201]
[1768652292933,0.01049824,95254.0,95251.0,0.000201]
[1768652293355,0.06298986,95254.0,95251.0,0.000201]
[1768652293777,0.01049824,95254.0,95251.0,0.000201]
[1768652295698,0.0629897,95254.0,95251.0,0.000201]
[1768652296585,0.05249202,95253.0,95251.0,0.000201]
[1768652297000,0.01049824,95254.0,95251.0,0.000201]
[1768652297440,0.06298958,95254.0,95251.0,0.000201]
[1768652298128,0.01049824,95254.0,95251.0,0.000201]
[1768652299047,0.01049802,95256.0,95252.0,0.01049846]
[1768652299317,0.01049725,95263.0,95257.0,0.01049791]
[1768652299542,0.13769747,95261.0,95257.0,0.01049791]
[1768652300274,0.1272,95261.0,95257.0,0.01049791]
[1768652300516,0.1272,95261.0,95258.0,0.0104978]
[1768652300761,0.01049714,95264.0,95260.0,0.01049758]
[1768652301030,0.01049736,95262.0,95257.0,0.06319108]
[1768652301250,0.01049747,95261.0,95257.0,0.05269317]
[1768652301913,0.01049747,95261.0,95257.0,0.06319108]
[1768652302141,0.01049725,95263.0,95257.0,0.05269317]
[1768652302371,0.01049736,95262.0,95257.0,0.06319108]
[1768652303195,0.01049736,95262.0,95258.0,0.0104978]
[1768652303423,0.01049758,95260.0,95257.0,0.05269317]
[1768652304818,0.01049736,95262.0,95257.0,0.05269317]
[1768652305049,0.01049747,95261.0,95257.0,0.06319108]
[1768652305527,0.01049736,95262.0,95257.0,0.06319108]
[1768652306091,0.01049758,95260.0,95257.0,0.05269317]
[1768652311363,0.01049769,95259.0,95255.0,0.06719528]
[1768652311590,0.01049725,95263.0,95260.0,0.05669715]
[1768652312034,0.01049736,95262.0,95257.0,0.0621379]
[1768652312264,0.01049725,95263.0,95258.0,0.0104978]
[1768652312482,0.01049736,95262.0,95257.0,0.0621379]
[1768652312720,0.01049747,95261.0,95257.0,0.0621379]
[1768652312947,0.01049758,95260.0,95257.0,0.05163999]
[1768652313177,0.01049769,95259.0,95254.0,0.01049824]
[1768652313398,0.01049791,95257.0,95252.0,0.01049846]
[1768652313873,0.01049802,95256.0,95251.0,0.01069957]
[1768652314322,0.01049791,95257.0,95253.0,0.01049835]
[1768652314782,0.01049802,95256.0,95252.0,0.05163999]
[1768652315002,0.01049824,95254.0,95251.0,0.000201]
[1768652315870,0.06298756,95257.0,95251.0,0.000201]
[1768652316082,0.01049802,95256.0,95252.0,0.01049846]
[1768652316280,0.01049813,95255.0,95251.0,0.01069957]
[1768652316488,0.01049824,95254.0,95251.0,0.000201]
[1768652318538,0.01049813,95255.0,95251.0,0.000201]
[1768652319018,0.01049813,95255.0,95251.0,0.01069957]
[1768652319233,0.01049802,95256.0,95251.0,0.01069957]
[1768652319649,0.01049813,95255.0,95251.0,0.01069957]
[1768652321284,0.01049802,95256.0,95251.0,0.01069957]
[1768652321712,0.01049802,95256.0,95252.0,0.01049846]
[1768652321930,0.01049802,95256.0,95252.0,0.01045317]
[1768652323923,0.01049802,95256.0,95252.0,0.01040788]
[1768652324563,0.01049813,95255.0,95251.0,0.01069957]
[1768652324944,0.01049791,95257.0,95252.0,0.01049846]
[1768652325577,0.01049791,95257.0,95253.0,0.01049835]
[1768652328859,0.01049758,95260.0,95254.0,0.01049824]
[1768652329091,0.01049758,95260.0,95256.0,0.01049802]
[1768652329313,0.01049747,95261.0,95256.0,0.01049802]
[1768652329526,0.01049747,95261.0,95257.0,0.01049791]
[1768652329881,0.06298534,95261.0,95254.0,0.06298918]
[1768652330077,0.01049769,95259.0,95255.0,0.01049813]
[1768652330534,0.01049769,95259.0,95254.0,0.01049824]
[1768652330758,0.01049769,95259.0,95255.0,0.0001042]
[1768652331124,0.01049769,95259.0,95255.0,0.01060233]
[1768652332001,0.05248989,95257.0,95255.0,0.0001042]
[1768652332593,0.0104978,95258.0,95255.0,0.0001042]
[1768652335069,0.01049769,95259.0,95255.0,0.01060233]
[1768652335629,0.01049769,95259.0,95255.0,0.0001042]
[1768652337677,0.0104978,95258.0,95255.0,0.0001042]
[1768652339464,0.01049769,95259.0,95255.0,0.0001042]
[1768652339733,0.01049769,95259.0,95255.0,0.01060233]
[1768652340389,0.0104978,95258.0,95255.0,0.0001042]
[1768652340886,0.01049769,95259.0,95255.0,0.01060233]
[1768652341089,0.06298718,95258.0,95255.0,5.891e-05]
[1768652341401,0.06298692,95258.0,95255.0,1.362e-05]
[1768652342544,0.0104978,95258.0,95255.0,1.362e-05]
[1768652342953,0.01049813,95255.0,95246.0,0.1272]
[1768652343326,0.01049846,95252.0,95246.0,0.19019474]
[1768652343981,0.01049835,95253.0,95248.0,0.0104989]
[1768652344211,0.01049857,95251.0,95247.0,0.01049901]
[1768652344635,0.01049846,95252.0,95247.0,0.01049901]
[1768652344819,0.01049846,95252.0,95248.0,0.0104989]
[1768652345202,0.01049835,95253.0,95248.0,0.0104989]
[1768652345608,0.46384728,95260.0,95240.0,0.01049979]
[1768652345609,0.01049879,95249.0,95240.0,0.01049979]
[1768652345836,0.01049901,95247.0,95242.0,0.01049956]
[1768652346090,0.01049912,95246.0,95241.0,0.01066007]
[1768652346324,0.06420225,95251.0,95235.0,0.01050034]
[1768652346325,0.01049934,95244.0,95235.0,0.01050034]
[1768652346532,0.01049979,95240.0,95235.0,0.01050034]
[1768652346746,0.01049979,95240.0,95236.0,0.01054748]
[1768652348460,0.01049967,95241.0,95237.0,0.01050012]
[1768652348665,0.01049979,95240.0,95236.0,0.01054748]
[1768652348888,0.0104999,95239.0,95236.0,4.725e-05]
[1768652350404,0.01050001,95238.0,95233.0,0.01050056]
[1768652350834,0.01050023,95236.0,95232.0,0.0001604]
[1768652351284,0.01050023,95236.0,95232.0,0.01066107]
[1768652351577,0.01050012,95237.0,95232.0,0.01066107]
[1768652351797,0.01050034,95235.0,95232.0,0.0001604]
[1768652352938,0.01050034,95235.0,95230.0,0.13770089]
[1768652352939,0.01050045,95234.0,95230.0,0.0737832]
[1768652353412,0.01050045,95234.0,95228.0,0.05250514]
[1768652353619,0.01050045,95234.0,95228.0,0.05255239]
[1768652354250,0.01050045,95234.0,95230.0,0.01050089]
[1768652354669,0.01050056,95233.0,95229.0,0.010501]
[1768652354882,0.01050056,95233.0,95228.0,4.725e-05]
[1768652355094,0.01050045,95234.0,95229.0,0.010501]
[1768652356151,0.06300297,95234.0,95228.0,0.01054836]
[1768652356365,0.01050045,95234.0,95229.0,0.010501]
[1768652356603,0.01050056,95233.0,95229.0,0.010501]
[1768652357461,0.01050045,95234.0,95230.0,0.01050089]
[1768652358743,0.01050045,95234.0,95228.0,4.725e-05]
[1768652358744,0.01050067,95232.0,95228.0,4.725e-05]
[1768652358955,0.05250446,95230.0,95228.0,4.725e-05]
[1768652359412,0.01050078,95231.0,95228.0,4.725e-05]
[1768652359816,0.01050078,95231.0,95228.0,1.97e-06]
[1768652360194,0.05250292,95233.0,95228.0,1.97e-06]
[1768652360195,0.01050056,95233.0,95228.0,0.01050308]
[1768652360415,0.01050045,95234.0,95229.0,0.010501]
[1768652361444,0.01050045,95234.0,95230.0,0.01050089]
[1768652362199,0.01050045,95234.0,95229.0,0.010501]
[1768652362903,0.01050034,95235.0,95230.0,0.01050089]
[1768652363137,0.01050034,95235.0,95231.0,0.01050078]
[1768652363348,0.01050023,95236.0,95231.0,0.01050078]
[1768652363567,0.05250183,95235.0,95229.0,0.010501]
[1768652363787,0.01050034,95235.0,95229.0,0.010501]
[1768652364210,0.01050034,95235.0,95229.0,0.06300578]
[1768652364620,0.01049979,95240.0,95231.0,0.01050078]
[1768652364859,0.01050001,95238.0,95231.0,0.06300414]
[1768652365044,0.01050001,95238.0,95233.0,0.01050056]
[1768652365256,0.01050001,95238.0,95234.0,0.01050045]
[1768652365465,0.0104999,95239.0,95234.0,0.01050045]
[1768652365672,0.01050001,95238.0,95234.0,0.01050045]